fUST/lending_fUST_20260630
["ID","MTS","AMOUNT","RATE_DAILY","PERIOD"]
[426719121,1782760244000,-500.0,0.00029599,7]
[426719132,1782760244000,-239.96,0.00029599,7]
[426719128,1782760244000,-500.0,0.00029599,7]
[426719124,1782760244000,-500.0,0.00029599,7]
[426719216,1782760245000,-709.06287832,0.0003,2]
[426719233,1782760245000,-131226.81216867,0.0003,2]
[426719235,1782760245000,-41150.17961078,0.0003,2]
[426719239,1782760245000,-368.8456,0.0003,2]
[426719237,1782760245000,-178.7217,0.0003,3]
[426719231,1782760245000,-1003.03054828,0.0003,2]
[426719225,1782760245000,-402.4893201,0.0003,2]
[426719245,1782760245000,-999.0,0.0003,2]
[426719243,1782760245000,-71331.38848896,0.0003,2]
[426719241,1782760245000,-165.46,0.0003,5]
[426719222,1782760245000,-990.69085592,0.0003,2]
[426719247,1782760245000,-1795.78177763,0.0003,2]
[426719410,1782760246000,-96696.17825504,0.0003,2]
[426719412,1782760246000,-2854.50315543,0.0003,2]
[426723406,1782760347000,169.54026807,0.00029315,120]
[426723405,1782760347000,225.34580119,0.00029315,110]
[426723407,1782760467000,169.54026806,0.00029315,120]
[426723422,1782761019000,920.57214675,0.000107,2]
[426727369,1782761501000,300000.00000001,0.00029531,120]
[426727372,1782761619000,79.42785325,0.000107,2]
[426727373,1782761619000,382.28252422,0.000107,2]
[426727374,1782761630000,5000.0,0.000151,13]
[426727377,1782761651000,300.0,0.000151,13]
[426727378,1782761659000,302.0,0.000151,13]
[426727379,1782761669000,1663.28930968,0.000151,13]
[426727385,1782761758000,1000.0,0.00027988,30]
[426727391,1782761951000,-2306.04575903,0.00015,2]
[426727433,1782762632000,-347.59302847,0.00027075,2]
[426727427,1782762632000,-249.47892665,0.00019452,18]
[426727430,1782762632000,-283.16142595,0.00027075,2]
[426727428,1782762632000,-480.96623744,0.00019978,2]
[426727429,1782762632000,-155.21875911,0.00022978,5]
[426727432,1782762632000,-193.30053858,0.00027075,2]
[426727434,1782762632000,-2216.0,0.00028009,2]
[426727431,1782762632000,-785.77295702,0.00027075,2]
[426727439,1782762632000,-304.41001131,0.00028805,2]
[426727438,1782762632000,-341.51128102,0.000285,2]
[426727442,1782762632000,-228.04482258,0.00029411,2]
[426727441,1782762632000,-577.71705889,0.00029359,7]
[426727440,1782762632000,-2138.62294111,0.00029359,7]
[426727435,1782762632000,-160.779083,0.00028211,2]
[426727437,1782762632000,-218.78600586,0.000285,2]
[426727436,1782762632000,-300.0,0.00028499,2]
[426727625,1782762641000,-500.0,0.0002962,7]
[426727608,1782762641000,-500.0,0.00029553,7]
[426727610,1782762641000,-500.0,0.00029553,7]
[426727612,1782762641000,-500.0,0.00029553,7]
[426727601,1782762641000,-390.42478818,0.00029528,2]
[426727606,1782762641000,-535.04,0.00029553,7]
[426727599,1782762641000,-16463.77525969,0.0002952,2]
[426727597,1782762641000,-186.047,0.00029512,23]
[426727592,1782762641000,-503.48948088,0.00029452,7]
[426727595,1782762641000,-1835.31610821,0.00029512,10]
[426727604,1782762641000,-500.0,0.00029553,7]
[426727588,1782762641000,-269.14,0.00029418,2]
[426727589,1782762641000,-586.84,0.00029452,7]
[426727581,1782762641000,-271.95517742,0.00029411,2]
[426727585,1782762641000,-16463.77525971,0.00029412,2]
[426727583,1782762641000,-500.0,0.00029411,2]
[426727614,1782762641000,-500.0,0.00029553,7]
[426727593,1782762641000,-16463.77525969,0.00029466,2]
[426727627,1782762641000,-500.0,0.0002962,7]
[426727648,1782762641000,-290.0,0.000297,2]
[426727616,1782762641000,-500.0,0.00029553,7]
[426727655,1782762641000,-859.67,0.00029725,3]
[426727657,1782762641000,-250.0794,0.00029727,2]
[426727649,1782762641000,-500.0,0.00029708,7]
[426727651,1782762641000,-573.09,0.00029725,3]
[426727653,1782762641000,-286.54,0.00029725,3]
[426727644,1782762641000,-1000.0,0.000297,2]
[426727629,1782762641000,-21967.83245686,0.00029621,2]
[426727642,1782762641000,-1000.0,0.000297,2]
[426727646,1782762641000,-700.0,0.000297,2]
[426727640,1782762641000,-300.0,0.00029693,2]
[426727636,1782762641000,-500.0,0.0002963,7]
[426727633,1782762641000,-500.0,0.00029628,7]
[426727634,1782762641000,-16463.77525969,0.00029629,2]
[426727623,1782762641000,-500.0,0.0002962,7]
[426727619,1782762641000,-16463.77525969,0.00029575,2]
[426727631,1782762641000,-500.0,0.00029628,7]
[426727621,1782762641000,-179.68644564,0.00029592,2]
[426727618,1782762641000,-500.0,0.00029553,7]
[426727638,1782762641000,-16463.77525969,0.00029683,2]
[426727670,1782762642000,-200.0,0.00029858,14]
[426727660,1782762642000,-16463.77525969,0.00029737,2]
[426727658,1782762642000,-500.0,0.00029736,7]
[426727666,1782762642000,-16463.77525969,0.00029792,2]
[426727668,1782762642000,-16463.77525969,0.00029846,2]
[426727672,1782762642000,-151.0,0.00029859,7]
[426727679,1782762642000,-2000.0,0.00029984,7]
[426727675,1782762642000,-500.07321517,0.00029881,2]
[426727681,1782762642000,-350803.04943083,0.0003,2]
[426727683,1782762642000,-127656.08107885,0.0003,2]
[426727673,1782762642000,-151.0,0.00029859,7]
[426727677,1782762642000,-16463.77525969,0.000299,2]
[426727662,1782762642000,-500.0,0.00029751,7]
[426727664,1782762642000,-333.68507172,0.00029772,7]
[426728250,1782762646000,-6000.0,0.0003,2]
[426732527,1782763029000,1054.3175892,0.0001,2]
[426732528,1782763040000,6764.63665177,0.00013,2]
[426732530,1782763041000,-500.0,0.00013,2]
[426732529,1782763041000,-190.70224807,0.00013,2]
[426732532,1782763043000,-500.0,0.00013,2]
[426732531,1782763043000,608.0,0.00029359,30]
[426732533,1782763049000,-380.59503303,0.00013,2]
[426732535,1782763049000,1000.0,7.6e-05,2]
[426732534,1782763049000,617.71747578,7.6e-05,2]
[426732536,1782763049000,1000.0,7.6e-05,2]
[426732539,1782763049000,1000.0,7.6e-05,2]
[426732538,1782763049000,1000.0,7.6e-05,2]
[426732541,1782763049000,1000.0,7.6e-05,2]
[426732540,1782763049000,1000.0,7.6e-05,2]
[426732537,1782763049000,1000.0,7.6e-05,2]
[426732545,1782763050000,-595.86843753,0.00013,2]
[426732544,1782763050000,380.96,0.0001,2]
[426732542,1782763050000,16914.65921217,7.6e-05,2]
[426732543,1782763050000,208171.6896773,7.6e-05,2]
[426732546,1782763051000,-390.39998653,0.00013,2]
[426732547,1782763052000,-772.49986084,0.00013,2]
[426732549,1782763053000,8331.75247282,0.0001,2]
[426732548,1782763053000,-290.07071826,0.00013,2]
[426732550,1782763054000,-828.34947302,0.00013,2]
[426732551,1782763055000,-1311.01384491,0.00013,2]
[426732554,1782763057000,-1418.85284174,0.00013,2]
[426732553,1782763057000,1290.07071826,0.000151,13]
[426732552,1782763057000,32470.70914044,0.00012,2]
[426732556,1782763065000,260.60621641,0.00028598,36]
[426732555,1782763065000,2735.23175546,0.000151,13]
[426732557,1782763073000,1543.4948804,0.000151,13]
[426732637,1782763832000,-81.26209676,0.00016999,2]
[426732634,1782763832000,-518.43742725,0.00016999,2]
[426732631,1782763832000,-300.0,0.00016998,2]
[426732624,1782763832000,-590.94936228,0.00015,2]
[426732628,1782763832000,-861.23387982,0.000158,2]
[426732626,1782763832000,-174.7,0.00015,2]
[426732828,1782763841000,-437.17533049,0.00016999,2]
[426732830,1782763841000,-495.24994702,0.00016999,2]
[426733015,1782763847000,-23.18748023,0.00016999,2]
[426733018,1782763847000,-269.59419149,0.00016999,2]
[426733016,1782763847000,-518.43742725,0.00016999,2]
[426733017,1782763847000,-518.43742725,0.00016999,2]
[426733020,1782763947000,179.95222764,0.0002934,120]
[426733021,1782763984000,1200.0,0.0003,30]
[426733030,1782764392000,40024.81449571,0.000275,120]
[426733074,1782764794000,1719.06001554,0.0003,30]
[426733101,1782765020000,152697.0,0.00030137,120]
[426733103,1782765028000,3017.4,0.00030136,30]
[426733196,1782765032000,-433.45811007,0.00015946,2]
[426733367,1782765046000,-337.81658563,0.00015997,2]
[426733365,1782765046000,-71.07751623,0.00015946,2]
[426733366,1782765046000,-201.692673,0.00015963,2]
[426733372,1782765072000,-421.31325487,0.00015997,2]
[426733374,1782765089000,-1000.0,0.00016124,2]
[426733376,1782765105000,-500.0,0.00016898,2]
[426733377,1782765123000,-164.068074,0.00016123,2]
[426733378,1782765139000,-500.0,0.00016898,2]
[426733379,1782765156000,-500.0,0.00016898,2]
[426733380,1782765203000,222.0,0.00029,120]
[426733503,1782765589000,700.0,0.0003,30]
[426733704,1782766240000,-151.5,0.00016724,2]
[426733708,1782766240000,-194.0,0.00016724,2]
[426733710,1782766240000,-151.5,0.00016724,2]
[426733703,1782766240000,-151.5,0.00016724,2]
[426733697,1782766240000,-201.692673,0.00015996,2]
[426733699,1782766240000,-963.02747651,0.00016141,2]
[426733706,1782766240000,-151.5,0.00016724,2]
[426733695,1782766240000,-158.7715018,0.0001597,2]
[426733701,1782766240000,-151.5,0.00016724,2]
[426733712,1782766240000,-151.5,0.00016724,2]
[426733719,1782766240000,-151.74433532,0.00016724,2]
[426733715,1782766240000,-151.5,0.00016724,2]
[426733713,1782766240000,-151.5,0.00016724,2]
[426733721,1782766240000,-151.5,0.00016724,2]
[426733723,1782766240000,-151.5,0.00016724,2]
[426733731,1782766240000,-500.0,0.00016897,2]
[426733733,1782766240000,-500.0,0.00016898,2]
[426733735,1782766240000,-500.0,0.00016898,2]
[426733725,1782766240000,-266.2207078,0.00016724,2]
[426733727,1782766240000,-986.11151198,0.00016842,2]
[426733729,1782766240000,-15366.33696118,0.00016896,2]
[426733717,1782766240000,-168.57022042,0.00016724,2]
[426733812,1782766241000,-547.10958327,0.00016995,2]
[426733811,1782766241000,-547.10958327,0.00016995,2]
[426733809,1782766241000,-547.10958327,0.00016995,2]
[426733807,1782766241000,-506.58294746,0.00016995,2]
[426733803,1782766241000,-506.58294746,0.00016995,2]
[426733801,1782766241000,-506.58294746,0.00016995,2]
[426733813,1782766241000,-547.10958327,0.00016995,2]
[426733815,1782766241000,-547.10958327,0.00016995,2]
[426733814,1782766241000,-547.10958327,0.00016995,2]
[426733816,1782766241000,-547.10958327,0.00016995,2]
[426733799,1782766241000,-506.58294746,0.00016995,2]
[426733797,1782766241000,-506.58294746,0.00016995,2]
[426733805,1782766241000,-506.58294746,0.00016995,2]
[426733817,1782766241000,-547.10958327,0.00016995,2]
[426733822,1782766241000,-1000.0,0.00016996,2]
[426733821,1782766241000,-1000.0,0.00016996,2]
[426733820,1782766241000,-1000.0,0.00016996,2]
[426733823,1782766241000,-1000.0,0.00016996,2]
[426733825,1782766241000,-1000.0,0.00016996,2]
[426733824,1782766241000,-1000.0,0.00016996,2]
[426733827,1782766241000,-1000.0,0.00016996,2]
[426733819,1782766241000,-1000.0,0.00016996,2]
[426733828,1782766241000,-1000.0,0.00016996,2]
[426733830,1782766241000,-1000.0,0.00016996,2]
[426733832,1782766241000,-1000.0,0.00016996,2]
[426733847,1782766241000,-1000.0,0.00016996,2]
[426733851,1782766241000,-1000.0,0.00016996,2]
[426733795,1782766241000,-506.58294746,0.00016995,2]
[426733818,1782766241000,-547.10958327,0.00016995,2]
[426733845,1782766241000,-1000.0,0.00016996,2]
[426733849,1782766241000,-1000.0,0.00016996,2]
[426733790,1782766241000,-506.58294746,0.00016995,2]
[426733739,1782766241000,-500.0,0.00016898,2]
[426733740,1782766241000,-211.65621126,0.00016899,2]
[426733737,1782766241000,-500.0,0.00016898,2]
[426733742,1782766241000,-501.45,0.0001699,3]
[426733744,1782766241000,-752.17,0.0001699,3]
[426733746,1782766241000,-376.09,0.0001699,3]
[426733748,1782766241000,-188.04,0.0001699,3]
[426733750,1782766241000,-564.17,0.0001699,3]
[426733752,1782766241000,-234.2963916,0.00016995,2]
[426733754,1782766241000,-582.38,0.00016995,2]
[426733764,1782766241000,-500.0,0.00016995,2]
[426733756,1782766241000,-582.38,0.00016995,2]
[426733758,1782766241000,-500.0,0.00016995,2]
[426733786,1782766241000,-506.58294746,0.00016995,2]
[426733766,1782766241000,-500.0,0.00016995,2]
[426733762,1782766241000,-233.68902622,0.00016995,2]
[426733760,1782766241000,-500.0,0.00016995,2]
[426733769,1782766241000,-495.92229594,0.00016995,2]
[426733771,1782766241000,-359.057082,0.00016995,2]
[426733773,1782766241000,-500.0,0.00016995,2]
[426733775,1782766241000,-500.0,0.00016995,2]
[426733780,1782766241000,-506.58294746,0.00016995,2]
[426733782,1782766241000,-506.58294746,0.00016995,2]
[426733778,1782766241000,-500.0,0.00016995,2]
[426733777,1782766241000,-500.0,0.00016995,2]
[426733793,1782766241000,-506.58294746,0.00016995,2]
[426733784,1782766241000,-506.58294746,0.00016995,2]
[426733788,1782766241000,-506.58294746,0.00016995,2]
[426733768,1782766241000,-500.0,0.00016995,2]
[426733834,1782766241000,-1000.0,0.00016996,2]
[426733791,1782766241000,-506.58294746,0.00016995,2]
[426733855,1782766241000,-1000.0,0.00016996,2]
[426733911,1782766241000,-582.38,0.00016999,2]
[426733913,1782766241000,-95766.436427,0.00017,2]
[426733915,1782766241000,-308.35789176,0.00017064,2]
[426733917,1782766241000,-352.05661013,0.00017064,2]
[426733919,1782766241000,-500.0,0.00017498,2]
[426733921,1782766241000,-200.0,0.00017499,2]
[426733923,1782766241000,-200.0,0.00017499,2]
[426733925,1782766241000,-200.0,0.00017499,2]
[426733927,1782766241000,-200.0,0.00017499,2]
[426733929,1782766241000,-200.0,0.00017499,2]
[426733931,1782766241000,-1009.19554758,0.00017544,2]
[426733933,1782766241000,-2176.4521311,0.000176,2]
[426733935,1782766241000,-1634.883567,0.00017679,2]
[426733909,1782766241000,-582.38,0.00016999,2]
[426733939,1782766241000,-166.77,0.00017943,2]
[426733937,1782766241000,-1109.79897014,0.00017933,2]
[426733941,1782766241000,-185.26108099,0.00017962,2]
[426733952,1782766241000,-7630.23403735,0.00018,2]
[426733954,1782766241000,-333.13647584,0.00018054,2]
[426733950,1782766241000,-201.55794191,0.00018,2]
[426733948,1782766241000,-582.38,0.00017999,2]
[426733955,1782766241000,-1032.27958319,0.00018245,2]
[426733957,1782766241000,-1002.9,0.0001836,3]
[426733959,1782766241000,-1504.34,0.0001836,3]
[426733963,1782766241000,-376.08,0.0001836,3]
[426733961,1782766241000,-752.18,0.0001836,3]
[426733967,1782766241000,-1055.36361879,0.00018947,2]
[426733853,1782766241000,-1000.0,0.00016996,2]
[426733943,1782766241000,-200.0,0.00017999,2]
[426733907,1782766241000,-582.38,0.00016999,2]
[426733965,1782766241000,-1634.883567,0.00018423,2]
[426733901,1782766241000,-500.0,0.00016999,2]
[426733836,1782766241000,-1000.0,0.00016996,2]
[426733838,1782766241000,-1000.0,0.00016996,2]
[426733842,1782766241000,-1000.0,0.00016996,2]
[426733843,1782766241000,-1000.0,0.00016996,2]
[426733840,1782766241000,-1000.0,0.00016996,2]
[426733859,1782766241000,-1000.0,0.00016996,2]
[426733856,1782766241000,-1000.0,0.00016996,2]
[426733860,1782766241000,-1000.0,0.00016996,2]
[426733898,1782766241000,-500.0,0.00016999,2]
[426733863,1782766241000,-1000.0,0.00016996,2]
[426733871,1782766241000,-500.0,0.00016997,2]
[426733867,1782766241000,-1000.0,0.00016996,2]
[426733876,1782766241000,-582.38,0.00016998,2]
[426733869,1782766241000,-1000.0,0.00016996,2]
[426733865,1782766241000,-1000.0,0.00016996,2]
[426733874,1782766241000,-500.0,0.00016997,2]
[426733903,1782766241000,-582.38,0.00016999,2]
[426733873,1782766241000,-500.0,0.00016997,2]
[426733899,1782766241000,-500.0,0.00016999,2]
[426733905,1782766241000,-582.38,0.00016999,2]
[426733896,1782766241000,-500.0,0.00016999,2]
[426733892,1782766241000,-500.0,0.00016999,2]
[426733894,1782766241000,-500.0,0.00016999,2]
[426733886,1782766241000,-500.0,0.00016999,2]
[426733888,1782766241000,-500.0,0.00016999,2]
[426733884,1782766241000,-607.18647749,0.00016999,2]
[426733882,1782766241000,-500.0,0.00016999,2]
[426733880,1782766241000,-500.0,0.00016999,2]
[426733878,1782766241000,-576.07139346,0.00016998,2]
[426733890,1782766241000,-593.97727186,0.00016999,2]
[426734051,1782766242000,-500.0,0.00021917,2]
[426734049,1782766242000,-287.12988042,0.00021832,2]
[426734053,1782766242000,-500.0,0.00021917,2]
[426734047,1782766242000,-239.11389424,0.00021832,2]
[426734045,1782766242000,-273.27302199,0.00021832,2]
[426734025,1782766242000,-1131.138404,0.0002,2]
[426734038,1782766242000,-1634.883567,0.00020655,2]
[426734039,1782766242000,-1125.64116465,0.00021052,2]
[426734036,1782766242000,-1088.31987867,0.0002035,2]
[426734032,1782766242000,-15366.33696112,0.00020246,2]
[426734031,1782766242000,-1131.138404,0.0002,2]
[426734041,1782766242000,-1634.883567,0.00021399,2]
[426734043,1782766242000,-1206.63575225,0.00021753,3]
[426734077,1782766242000,-186.04858858,0.00024055,5]
[426734057,1782766242000,-426.56210776,0.00022282,2]
[426734055,1782766242000,-172.0,0.00022,2]
[426734061,1782766242000,-1287.63033985,0.00022455,3]
[426734063,1782766242000,-582.38,0.00022981,2]
[426734059,1782766242000,-327.82028633,0.00022282,2]
[426734075,1782766242000,-1474.44688697,0.00023858,3]
[426734073,1782766242000,-166.417244,0.00023597,2]
[426734066,1782766242000,-1368.62492745,0.00023156,3]
[426734070,1782766242000,-202.05116,0.00023595,2]
[426734079,1782766242000,-500.0,0.00024435,2]
[426734071,1782766242000,-15366.33696112,0.00023595,2]
[426734068,1782766242000,-151.0,0.00023595,2]
[426734023,1782766242000,-151.0,0.0002,2]
[426734034,1782766242000,-803.12254552,0.00020308,2]
[426734029,1782766242000,-1131.138404,0.0002,2]
[426733995,1782766242000,-582.38,0.00019998,2]
[426734019,1782766242000,-151.0,0.0002,2]
[426734081,1782766242000,-500.0,0.00024435,2]
[426733971,1782766242000,-500.0,0.00019578,2]
[426733973,1782766242000,-582.38,0.00019579,2]
[426733974,1782766242000,-16689.56441511,0.0001958,2]
[426733977,1782766242000,-151.0,0.0001958,2]
[426733980,1782766242000,-151.0,0.0001958,2]
[426733978,1782766242000,-151.0,0.0001958,2]
[426733982,1782766242000,-1131.138404,0.0001958,2]
[426733997,1782766242000,-334.86406528,0.00019999,2]
[426733993,1782766242000,-500.0,0.00019998,2]
[426733987,1782766242000,-1131.138404,0.0001958,2]
[426734001,1782766242000,-500.0,0.00019999,2]
[426733986,1782766242000,-1131.138404,0.0001958,2]
[426733984,1782766242000,-1131.138404,0.0001958,2]
[426733989,1782766242000,-1065.55635989,0.00019648,2]
[426733991,1782766242000,-1634.883567,0.00019911,2]
[426733999,1782766242000,-500.0,0.00019999,2]
[426734006,1782766242000,-582.38,0.00019999,2]
[426734004,1782766242000,-582.38,0.00019999,2]
[426734003,1782766242000,-156.10317444,0.00019999,2]
[426734008,1782766242000,-582.38,0.00019999,2]
[426734012,1782766242000,-582.38,0.00019999,2]
[426734010,1782766242000,-582.38,0.00019999,2]
[426734014,1782766242000,-582.38,0.00019999,2]
[426734016,1782766242000,-328.66771613,0.0002,2]
[426734017,1782766242000,-126000.0,0.0002,2]
[426734027,1782766242000,-1131.138404,0.0002,2]
[426734021,1782766242000,-151.0,0.0002,2]
[426734082,1782766242000,-500.0,0.00024435,2]
[426733969,1782766242000,-1634.883567,0.00019167,2]
[426734089,1782766242000,-636.03702336,0.00024435,2]
[426734153,1782766242000,-1000.0,0.00029315,2]
[426734174,1782766242000,-500.0,0.00029315,7]
[426734176,1782766242000,-500.0,0.00029315,7]
[426734182,1782766242000,-500.0,0.00029315,7]
[426734184,1782766242000,-500.0,0.00029315,7]
[426734178,1782766242000,-500.0,0.00029315,7]
[426734165,1782766242000,-500.0,0.00029315,7]
[426734167,1782766242000,-500.0,0.00029315,7]
[426734180,1782766242000,-500.0,0.00029315,7]
[426734187,1782766242000,-3791.1992,0.00029315,7]
[426734172,1782766242000,-500.0,0.00029315,7]
[426734169,1782766242000,-500.0,0.00029315,7]
[426734186,1782766242000,-500.0,0.00029315,7]
[426734193,1782766242000,-176.5136,0.00029315,7]
[426734197,1782766242000,-500.0,0.00029315,7]
[426734199,1782766242000,-500.0,0.00029315,7]
[426734195,1782766242000,-500.0,0.00029315,7]
[426734212,1782766242000,-500.0,0.00029315,7]
[426734203,1782766242000,-500.0,0.00029315,7]
[426734201,1782766242000,-500.0,0.00029315,7]
[426734190,1782766242000,-500.0,0.00029315,7]
[426734209,1782766242000,-500.0,0.00029315,7]
[426734208,1782766242000,-500.0,0.00029315,7]
[426734205,1782766242000,-500.0,0.00029315,7]
[426734213,1782766242000,-500.0,0.00029315,7]
[426734215,1782766242000,-500.0,0.00029315,7]
[426734217,1782766242000,-500.0,0.00029315,7]
[426734161,1782766242000,-500.0,0.00029315,7]
[426734155,1782766242000,-1000.0,0.00029315,2]
[426734219,1782766242000,-500.0,0.00029315,7]
[426734151,1782766242000,-500.0,0.00029315,7]
[426734163,1782766242000,-500.0,0.00029315,7]
[426734091,1782766242000,-1556.98876032,0.00024559,2]
[426734094,1782766242000,-380.0,0.00024658,2]
[426734096,1782766242000,-200.0,0.00025,2]
[426734099,1782766242000,-1639.53063367,0.00025261,2]
[426734104,1782766242000,-160.69,0.00026121,3]
[426734111,1782766242000,-1131.138404,0.00026664,2]
[426734106,1782766242000,-4288.98227483,0.00026664,2]
[426734101,1782766242000,-2550.1951385,0.00025962,2]
[426734114,1782766242000,-1131.138404,0.00026664,2]
[426734109,1782766242000,-1131.138404,0.00026664,2]
[426734116,1782766242000,-1131.138404,0.00026664,2]
[426734118,1782766242000,-15366.33696112,0.00026945,2]
[426734124,1782766242000,-7948.49801462,0.00028067,2]
[426734085,1782766242000,-500.0,0.00024435,2]
[426734125,1782766242000,-364.39646908,0.00028234,2]
[426734127,1782766242000,-9728.8206507,0.00028768,2]
[426734149,1782766242000,-500.0,0.00029315,7]
[426734157,1782766242000,-1000.0,0.00029315,2]
[426734159,1782766242000,-500.0,0.00029315,7]
[426734143,1782766242000,-582.38,0.00029314,2]
[426734147,1782766242000,-729.7169,0.00029315,7]
[426734145,1782766242000,-582.42,0.00029314,2]
[426734136,1782766242000,-582.38,0.00029314,2]
[426734139,1782766242000,-582.38,0.00029314,2]
[426734131,1782766242000,-582.38,0.00029314,2]
[426734122,1782766242000,-6168.17537854,0.00027365,2]
[426734120,1782766242000,-186.0,0.00027099,2]
[426734129,1782766242000,-159.78,0.00029069,15]
[426734141,1782766242000,-582.38,0.00029314,2]
[426734306,1782766243000,-500.0,0.00029315,7]
[426734289,1782766243000,-621.89775448,0.00029315,7]
[426734291,1782766243000,-500.0,0.00029315,7]
[426734305,1782766243000,-500.0,0.00029315,7]
[426734303,1782766243000,-500.0,0.00029315,7]
[426734268,1782766243000,-500.0,0.00029315,7]
[426734293,1782766243000,-500.0,0.00029315,7]
[426734301,1782766243000,-500.0,0.00029315,7]
[426734272,1782766243000,-500.0,0.00029315,7]
[426734270,1782766243000,-500.0,0.00029315,7]
[426734308,1782766243000,-552.95,0.00029315,7]
[426734295,1782766243000,-500.0,0.00029315,7]
[426734316,1782766243000,-500.0,0.00029315,7]
[426734297,1782766243000,-500.0,0.00029315,7]
[426734312,1782766243000,-500.0,0.00029315,7]
[426734299,1782766243000,-500.0,0.00029315,7]
[426734314,1782766243000,-500.0,0.00029315,7]
[426734325,1782766243000,-500.0,0.00029315,7]
[426734266,1782766243000,-500.0,0.00029315,7]
[426734319,1782766243000,-500.0,0.00029315,7]
[426734321,1782766243000,-557.48,0.00029315,7]
[426734331,1782766243000,-500.0,0.00029315,7]
[426734317,1782766243000,-500.0,0.00029315,7]
[426734333,1782766243000,-500.0,0.00029315,7]
[426734327,1782766243000,-500.0,0.00029315,7]
[426734323,1782766243000,-500.0,0.00029315,7]
[426734329,1782766243000,-152.0,0.00029315,7]
[426734310,1782766243000,-500.0,0.00029315,7]
[426734284,1782766243000,-500.0,0.00029315,7]
[426734274,1782766243000,-500.0,0.00029315,7]
[426734285,1782766243000,-500.0,0.00029315,7]
[426734337,1782766243000,-500.0,0.00029315,7]
[426734232,1782766243000,-500.0,0.00029315,7]
[426734221,1782766243000,-500.0,0.00029315,7]
[426734230,1782766243000,-500.0,0.00029315,7]
[426734233,1782766243000,-500.0,0.00029315,7]
[426734228,1782766243000,-500.0,0.00029315,7]
[426734235,1782766243000,-500.0,0.00029315,7]
[426734223,1782766243000,-500.0,0.00029315,7]
[426734225,1782766243000,-201.95,0.00029315,7]
[426734237,1782766243000,-500.0,0.00029315,7]
[426734241,1782766243000,-159.54998211,0.00029315,7]
[426734246,1782766243000,-500.0,0.00029315,7]
[426734239,1782766243000,-500.0,0.00029315,7]
[426734245,1782766243000,-500.0,0.00029315,7]
[426734258,1782766243000,-558.91712867,0.00029315,7]
[426734243,1782766243000,-500.0,0.00029315,7]
[426734250,1782766243000,-224.17822995,0.00029315,7]
[426734252,1782766243000,-500.0,0.00029315,7]
[426734260,1782766243000,-500.0,0.00029315,7]
[426734256,1782766243000,-500.0,0.00029315,7]
[426734254,1782766243000,-500.0,0.00029315,7]
[426734262,1782766243000,-500.0,0.00029315,7]
[426734264,1782766243000,-500.0,0.00029315,7]
[426734278,1782766243000,-500.0,0.00029315,7]
[426734280,1782766243000,-500.0,0.00029315,7]
[426734276,1782766243000,-500.0,0.00029315,7]
[426734282,1782766243000,-500.0,0.00029315,7]
[426734287,1782766243000,-500.0,0.00029315,7]
[426734248,1782766243000,-578.87206224,0.00029315,7]
[426734341,1782766243000,-500.0,0.00029315,7]
[426734342,1782766243000,-500.0,0.00029315,7]
[426734406,1782766243000,-500.0,0.00029315,7]
[426734404,1782766243000,-500.0,0.00029315,7]
[426734408,1782766243000,-500.0,0.00029315,7]
[426734422,1782766243000,-500.0,0.00029315,7]